bitfinex/quotes_ETHUSD_20250705
["timestamp","ask_amount","ask_price","bid_price","bid_amount"]
[1751716935685,20.14506876,2518.4,2518.3,0.01]
[1751716935996,19.85826876,2518.4,2518.3,0.01]
[1751716936202,17.82026876,2518.4,2518.3,0.01]
[1751716936369,19.85826876,2518.4,2518.3,0.01]
[1751716936798,17.27026876,2518.4,2518.3,0.01]
[1751716936999,12.40617929,2518.4,2518.3,0.01]
[1751716937208,16.37695438,2518.4,2518.3,0.01]
[1751716940474,10.36817929,2518.4,2518.3,0.01]
[1751716940675,12.039,2518.4,2518.3,0.01]
[1751716940890,16.00977509,2518.4,2518.3,0.01]
[1751716941092,12.039,2518.4,2518.3,0.01]
[1751716941287,16.00977509,2518.4,2518.3,0.01]
[1751716941687,13.97077509,2518.4,2518.3,0.01]
[1751716941997,12.039,2518.4,2518.3,0.01]
[1751716942231,10.0,2518.4,2518.3,0.01]
[1751716942368,10.0,2518.4,2518.3,4.79803277]
[1751716942698,2.039,2518.6,2518.3,5.1960549]
[1751716942898,2.039,2518.6,2518.3,0.8271]
[1751716943100,2.24601087,2518.6,2518.3,0.8271]
[1751716944277,10.0,2518.5,2518.3,0.8271]
[1751716945504,16.21647202,2518.6,2518.3,0.8271]
[1751716946176,3.97077509,2518.4,2518.3,0.01]
[1751716946371,13.97077509,2518.4,2518.3,0.01]
[1751716948668,14.52077509,2518.4,2518.3,0.01]
[1751716951207,14.80757509,2518.4,2518.3,0.01]
[1751716951410,15.45955906,2518.4,2518.3,0.01]
[1751716951798,17.69312724,2518.4,2518.3,0.01]
[1751716955413,13.97140587,2518.0,2517.9,0.05526741]
[1751716955600,16.36777855,2518.0,2517.9,0.05526741]
[1751716958181,10.36937268,2518.0,2517.9,0.05526741]
[1751716958615,12.39637268,2518.0,2517.9,0.05526741]
[1751716960094,16.36777855,2518.0,2517.9,0.05526741]
[1751716960508,12.39637268,2518.0,2517.9,0.05526741]
[1751716961816,12.027,2518.0,2517.9,0.05526741]
[1751716962003,12.39672822,2518.0,2517.9,0.05526741]
[1751716962200,10.36972822,2518.0,2517.9,0.05526741]
[1751716962412,10.36972822,2518.0,2517.9,0.85036741]
[1751716966218,14.34113409,2518.0,2517.9,0.85036741]
[1751716966810,14.34113409,2518.0,2517.9,0.05526741]
[1751716967004,16.37507446,2518.0,2517.9,0.05526741]
[1751716970388,10.36972822,2518.0,2517.9,0.05526741]
[1751716970730,12.39672822,2518.0,2517.9,0.05526741]
[1751716971294,12.6037013,2518.0,2517.9,0.05526741]
[1751716972923,16.57510717,2518.0,2517.9,0.05526741]
[1751716973132,12.6037013,2518.0,2517.9,0.05526741]
[1751716974706,10.5767013,2518.0,2517.9,0.05526741]
[1751716975037,10.5767013,2518.0,2517.9,0.80796741]
[1751716975241,10.5767013,2518.0,2517.9,0.80996741]
[1751716975731,10.5767013,2518.0,2517.9,4.78153101]
[1751716976027,10.5767013,2518.0,2517.9,0.80996741]
[1751716976332,0.36972822,2518.0,2517.9,5.65786853]
[1751716978237,0.36972822,2518.0,2517.9,1.68630493]
[1751716978541,0.36972822,2518.0,2517.9,0.05726741]
[1751716979306,0.36972822,2518.0,2517.9,4.82203101]
[1751716980628,0.36972822,2518.0,2517.9,0.85046741]
[1751716983341,0.36972822,2518.0,2517.9,0.05726741]
[1751716984138,13.97116889,2518.2,2517.9,0.05726741]
[1751716985241,13.97100251,2518.3,2517.9,0.05726741]
[1751716985429,2.013,2518.2,2517.9,0.05726741]
[1751716986042,3.97126801,2518.1,2517.9,0.05726741]
[1751716987839,3.97126801,2518.1,2517.9,0.002]
[1751716988536,2.013,2518.2,2517.9,0.002]
[1751716989039,5.98409751,2518.2,2517.9,0.002]
[1751716990146,2.013,2518.2,2517.9,0.002]
[1751716990509,5.98414451,2518.2,2517.9,0.002]
[1751716991928,2.013,2518.2,2517.9,0.002]
[1751716992316,5.98411182,2518.2,2517.9,0.002]
[1751716993221,3.97131734,2518.1,2517.9,0.002]
[1751716993423,5.98416515,2518.2,2517.9,0.002]
[1751716993619,2.013,2518.2,2517.9,0.002]
[1751716994521,0.94731081,2518.5,2518.0,0.797]
[1751716994721,5.98378863,2518.4,2518.0,0.797]
[1751716994922,13.97095554,2518.3,2518.0,0.797]
[1751716995325,10.0,2518.3,2518.0,0.797]
[1751716995524,5.98378752,2518.4,2518.0,0.797]
[1751716995760,10.36991274,2518.3,2518.0,0.797]
[1751716995963,0.36594126,2518.2,2518.0,0.797]
[1751716996165,10.0,2518.3,2518.0,0.797]
[1751716996955,2.013,2518.4,2518.0,4.76839063]
[1751716997162,2.013,2518.4,2518.0,5.64971878]
[1751716997465,2.014,2518.5,2518.0,1.67832815]
[1751716997672,2.014,2518.5,2518.3,0.7951]
[1751716998028,2.014,2518.5,2518.3,0.81975781]
[1751716998535,0.001,2518.5,2518.3,0.81975781]
[1751717001233,10.001,2518.5,2518.3,0.81975781]
[1751717001930,0.001,2518.5,2518.4,3.97077509]
[1751717002139,0.001,2518.5,2518.4,5.20552838]
[1751717003062,0.001,2518.5,2518.4,5.23018619]
[1751717004372,0.001,2518.5,2518.4,5.26989394]
[1751717004667,0.001,2518.5,2518.4,5.23018619]
[1751717005438,0.001,2518.5,2518.4,13.36618619]
[1751717007975,0.37035422,2518.5,2518.4,13.36618619]
[1751717012659,0.001,2518.5,2518.4,13.36618619]
[1751717012859,0.37011068,2518.5,2518.4,13.36618619]
[1751717016286,0.37010438,2518.5,2518.4,13.36618619]
[1751717019771,0.37010438,2518.5,2518.4,5.23018619]
[1751717019972,0.37010438,2518.5,2518.4,13.34718619]
[1751717020187,0.37010438,2518.5,2518.4,9.3764111]
[1751717020506,16.33572181,2518.5,2518.4,0.02465781]
[1751717020993,4.25820587,2518.0,2517.9,0.002]
[1751717021201,22.20924893,2518.0,2517.9,0.002]
[1751717022677,22.41597509,2518.0,2517.9,0.002]
[1751717022879,25.05469972,2518.0,2517.9,0.002]
[1751717023200,27.04969972,2518.0,2517.9,0.002]
[1751717023706,10.57583054,2518.0,2517.9,0.002]
[1751717028700,14.54723641,2518.0,2517.9,0.002]
[1751717029505,14.83403641,2518.0,2517.9,0.002]
[1751717030404,14.46493203,2518.0,2517.9,0.002]
[1751717034809,22.04687071,2518.0,2517.9,0.002]
[1751717035009,24.8481847,2518.0,2517.9,0.002]
[1751717036173,24.8481847,2518.0,2517.8,0.0465194]
[1751717036174,24.8481847,2518.0,2517.7,0.01]
[1751717036175,4.52172134,2517.8,2517.7,0.01]
[1751717036379,14.80852134,2517.8,2517.7,0.01]
[1751717036906,24.36752134,2517.8,2517.7,0.01]
[1751717037118,19.48946801,2517.8,2517.7,0.01]
[1751717037411,20.03946801,2517.8,2517.7,0.01]
[1751717039982,17.49346801,2517.8,2517.7,0.01]
[1751717040208,19.48946801,2517.8,2517.7,0.01]
[1751717041589,17.49346801,2517.8,2517.7,0.01]
[1751717041785,1.996,2517.8,2517.7,0.01]
[1751717043609,5.96772134,2517.8,2517.7,0.01]
[1751717043991,3.97172134,2517.8,2517.7,0.01]
[1751717044316,5.96772134,2517.8,2517.7,0.01]
[1751717046316,6.25452134,2517.8,2517.7,0.01]
[1751717046502,8.29780657,2517.8,2517.7,0.01]
[1751717047885,8.84780657,2517.8,2517.7,0.01]
[1751717048286,18.84780657,2517.8,2517.7,0.01]
[1751717048694,26.95980657,2517.8,2517.7,0.01]
[1751717050724,16.01500657,2517.8,2517.7,0.01]
[1751717050923,15.96172134,2517.8,2517.7,0.01]
[1751717052007,25.99529879,2517.8,2517.7,0.01]
[1751717055731,55.99529879,2517.8,2517.7,0.01]
[1751717056506,14.52187909,2517.7,2517.6,0.002]
[1751717056707,44.80899463,2517.5,2517.4,0.0386456]
[1751717056903,14.80899463,2517.5,2517.4,0.0386456]
[1751717058436,25.21784428,2517.5,2517.4,0.0386456]
[1751717059836,21.84661454,2517.5,2517.4,0.0386456]
[1751717060040,13.97219463,2517.5,2517.4,0.0386456]
[1751717060238,11.991,2517.5,2517.4,0.0386456]
[1751717060408,15.96319463,2517.5,2517.4,0.0386456]
[1751717060609,25.71779328,2517.5,2517.4,0.0386456]
[1751717060809,26.00459328,2517.5,2517.4,0.0386456]
[1751717061304,26.54507725,2517.5,2517.4,0.0386456]
[1751717061908,26.54507725,2517.5,2517.4,0.0406456]
[1751717062744,26.00459328,2517.5,2517.4,0.0406456]
[1751717062939,15.96319463,2517.5,2517.4,0.0406456]
[1751717064714,10.0,2517.5,2517.4,0.0406456]
[1751717065048,11.991,2517.5,2517.4,0.0406456]
[1751717068258,15.96319463,2517.5,2517.4,0.0406456]
[1751717068457,10.0,2517.5,2517.4,0.0406456]
[1751717068766,10.0,2517.5,2517.4,0.8553456]
[1751717068966,10.0,2517.5,2517.4,1.33914185]
[1751717070368,10.0,2517.5,2517.4,0.8553456]
[1751717070580,0.20659273,2517.6,2517.4,4.82759506]
[1751717070763,0.20659273,2517.6,2517.4,0.8553456]
[1751717071773,10.20659273,2517.6,2517.4,0.8553456]
[1751717072081,0.20659273,2517.6,2517.4,0.8553456]
[1751717072386,0.20659273,2517.6,2517.4,1.73639678]
[1751717073367,0.20659273,2517.6,2517.4,5.70874317]
[1751717073778,0.20659273,2517.6,2517.5,3.97219463]
[1751717073972,0.36895173,2517.6,2517.5,0.8127]
[1751717076474,0.3688607,2517.6,2517.5,0.8127]
[1751717076675,0.36886067,2517.6,2517.5,1.29526191]
[1751717077249,0.36886067,2517.6,2517.5,5.26745654]
[1751717079287,0.36886067,2517.6,2517.5,5.26945654]
[1751717079689,0.001,2517.8,2517.7,3.97187909]
[1751717079989,0.36989719,2517.8,2517.7,4.76997909]
[1751717080183,0.36989719,2517.8,2517.7,5.69265265]
[1751717080575,0.36989719,2517.8,2517.7,1.72077356]
[1751717081884,0.36989719,2517.8,2517.7,5.69265265]
[1751717082480,0.001,2517.8,2517.7,5.69265265]
[1751717082791,0.36967592,2517.8,2517.7,5.69265265]
[1751717083295,0.36967592,2517.8,2517.7,5.73237144]
[1751717083884,0.36967592,2517.8,2517.7,5.69265265]
[1751717085400,0.36967592,2517.8,2517.7,13.79365265]
[1751717091776,0.36967592,2517.8,2517.7,13.78865265]
[1751717096621,0.36967592,2517.8,2517.7,21.37627256]
[1751717096822,10.001,2518.4,2517.7,26.11627256]
[1751717096823,0.001,2518.4,2517.7,26.11627256]
[1751717097025,0.001,2518.4,2518.3,4.76673277]
[1751717097328,0.001,2518.4,2518.3,12.89444209]
[1751717097547,0.001,2518.4,2518.3,12.85473277]
[1751717100333,1e-08,2518.4,2518.3,13.40473277]
[1751717100537,1e-08,2518.4,2518.3,15.90107416]
[1751717103737,1e-08,2518.4,2518.3,25.90107416]
[1751717103948,1e-08,2518.5,2518.4,12.901595]
[1751717105819,1e-08,2518.5,2518.4,27.641595]
[1751717106146,1e-08,2518.5,2518.4,30.57305857]
[1751717106549,1e-08,2518.9,2518.8,3.97014451]
[1751717106753,1e-08,2518.9,2518.8,25.73556442]
[1751717106924,1e-08,2518.9,2518.8,35.73556442]
[1751717108243,1e-08,2518.9,2518.8,20.06594451]
[1751717108556,1e-08,2518.9,2518.8,29.06961807]
[1751717116640,1e-08,2518.9,2518.8,20.98861807]
[1751717116968,1e-08,2518.9,2518.8,31.03961807]
[1751717117667,1e-08,2518.9,2518.8,38.62723798]
[1751717118360,1e-08,2518.9,2518.8,28.57623798]
[1751717118569,1e-08,2518.9,2518.8,36.65023798]
[1751717119967,1e-08,2518.9,2518.8,36.09823798]
[1751717120335,1e-08,2518.9,2518.8,22.96581807]
[1751717124146,1e-08,2518.9,2518.8,23.51581807]
[1751717124350,1e-08,2518.9,2518.8,24.29891807]
[1751717124564,1e-08,2518.9,2518.8,29.03891807]
[1751717129167,1e-08,2518.9,2518.8,29.04091807]
[1751717130849,1e-08,2518.9,2518.8,36.62853798]
[1751717131871,1e-08,2518.9,2518.8,36.62253798]
[1751717132180,1e-08,2518.9,2518.8,28.55553798]
[1751717132352,1e-08,2518.9,2518.8,36.62253798]
[1751717145984,1e-08,2518.9,2518.8,28.55553798]
[1751717146183,0.36993727,2518.9,2518.8,9.63481807]
[1751717146352,0.36993727,2518.9,2518.8,17.70181807]
[1751717147684,0.36993727,2518.9,2518.8,9.63481807]
[1751717147891,0.36993727,2518.9,2518.8,16.77814451]
[1751717148091,0.65673727,2518.9,2518.8,16.77814451]
[1751717148279,0.65673727,2518.9,2518.8,12.03814451]
[1751717150188,0.65673727,2518.9,2518.8,3.97214451]
[1751717150379,0.65673727,2518.9,2518.8,8.068]
[1751717151589,0.65673727,2518.9,2518.8,8.07]
[1751717153010,0.65673727,2518.9,2518.8,0.002]
[1751717153315,0.6557928,2518.9,2518.8,8.067]
[1751717154304,0.65565539,2518.9,2518.8,8.067]
[1751717156103,0.28680001,2518.9,2518.8,8.067]
[1751717156307,0.65543962,2518.9,2518.8,8.067]
[1751717157023,0.65543962,2518.9,2518.8,8.064]
[1751717157641,0.65543962,2518.9,2518.8,0.002]
[1751717157790,1.11796034,2518.9,2518.8,0.002]
[1751717157985,1.11796034,2518.9,2518.8,8.064]
[1751717158324,1.11796034,2518.9,2518.8,0.002]
[1751717158526,15.08794723,2518.9,2518.8,0.002]
[1751717161131,17.05894723,2518.9,2518.8,0.002]
[1751717161491,0.65543962,2518.9,2518.8,0.002]
[1751717162625,0.65543962,2518.9,2518.8,3.97214451]
[1751717162814,0.36863962,2518.9,2518.8,12.03614451]
[1751717164327,0.36816052,2518.9,2518.8,12.03614451]
[1751717164506,0.36816052,2518.9,2518.8,13.63678808]
[1751717170223,0.36845883,2518.9,2518.8,13.63678808]
[1751717172763,1e-08,2518.9,2518.8,13.63678808]
[1751717173127,1e-08,2518.9,2518.8,14.43728808]
[1751717174963,1e-08,2518.9,2518.8,6.37328808]
[1751717175262,1e-08,2518.9,2518.8,14.43228808]
[1751717175865,0.36909644,2518.9,2518.8,14.43228808]
[1751717176378,0.36909644,2518.9,2518.8,5.57278808]
[1751717176533,0.36909644,2518.9,2518.8,13.63178808]
[1751717179271,0.36909644,2518.9,2518.8,13.62978808]
[1751717185124,0.36909644,2518.9,2518.8,5.57278808]
[1751717185304,0.36909644,2518.9,2518.8,12.02714451]
[1751717188500,0.36909644,2518.9,2518.8,12.84894451]
[1751717195210,0.36982456,2518.9,2518.8,12.84894451]
[1751717195413,0.36982456,2518.9,2518.8,17.58894451]
[1751717198863,0.36982456,2518.9,2518.8,17.58894451]
[1751717200952,0.24969094,2519.4,2519.3,3.96935656]
[1751717200953,0.043059,2519.4,2519.3,3.96935656]
[1751717201128,0.043059,2519.4,2519.3,12.42129222]
[1751717203769,0.043059,2519.4,2519.3,17.16129222]
[1751717211080,0.044059,2519.4,2519.3,17.16129222]
[1751717211276,0.044059,2519.4,2519.3,9.10629222]
[1751717211452,0.044059,2519.4,2519.3,17.15929222]
[1751717212083,0.044059,2519.4,2519.3,9.10629222]
[1751717212287,0.044059,2519.4,2519.3,17.15929222]
[1751717212990,0.044059,2519.4,2519.3,9.10629222]
[1751717213289,0.330859,2519.4,2519.3,12.41929222]
[1751717213791,0.69950918,2519.4,2519.3,12.41929222]
[1751717214288,0.69950918,2519.4,2519.3,12.02235656]
[1751717215495,0.41270918,2519.4,2519.3,12.02235656]
[1751717215694,0.044059,2519.4,2519.3,12.02235656]
[1751717217996,0.044059,2519.4,2519.3,19.60997647]
[1751717219084,0.044059,2519.4,2519.3,24.34997647]
[1751717219306,0.044059,2519.4,2519.3,27.26468261]
[1751717220294,1e-08,2519.4,2519.3,27.26468261]
[1751717220500,1e-08,2519.4,2519.3,28.64228261]
[1751717221221,1e-08,2519.4,2519.3,38.64228261]
[1751717222411,1e-08,2519.4,2519.3,31.0546627]
[1751717222607,1e-08,2519.4,2519.3,31.6420627]
[1751717222835,1e-08,2519.4,2519.3,19.6760627]
[1751717225526,1e-08,2519.4,2519.3,28.05468261]
[1751717225722,1e-08,2519.4,2519.3,38.05468261]
[1751717225921,1e-08,2519.4,2519.3,38.60468261]
[1751717228809,1e-08,2519.4,2519.3,22.9650627]
[1751717229002,1e-08,2519.4,2519.3,32.9810627]
[1751717231342,1e-08,2519.4,2519.3,32.9800627]
[1751717232317,1e-08,2519.4,2519.3,12.4150627]
[1751717232524,1e-08,2519.4,2519.3,12.01935656]
[1751717236422,0.36926824,2519.4,2519.3,3.96935656]
[1751717236640,0.36926824,2519.4,2519.3,12.01935656]
[1751717238861,0.36926824,2519.4,2519.3,3.96935656]
[1751717239161,0.36926824,2519.4,2519.3,12.01935656]
[1751717241661,0.36926824,2519.4,2519.3,3.96935656]
[1751717241877,0.36926824,2519.4,2519.3,12.01935656]
[1751717242559,0.36926824,2519.4,2519.3,13.69713071]
[1751717242815,1e-08,2519.4,2519.3,13.69713071]
[1751717242930,1e-08,2519.4,2519.3,18.43713071]
[1751717245068,1e-08,2519.4,2519.3,18.43913071]
[1751717251690,1e-08,2519.4,2519.3,18.98913071]
[1751717251881,1e-08,2519.4,2519.3,19.74763071]
[1751717253171,1e-08,2519.4,2519.3,27.33525062]
[1751717254465,1e-08,2519.4,2519.3,19.74763071]
[1751717259476,1e-08,2519.4,2519.3,10.38913071]
[1751717259682,1e-08,2519.4,2519.3,16.76035656]
[1751717260073,0.36954173,2519.4,2519.3,16.76035656]
[1751717260699,0.36954173,2519.4,2519.3,12.02035656]
[1751717261000,1e-08,2519.4,2519.3,12.02035656]
[1751717261402,1e-08,2519.4,2519.3,12.57035656]
[1751717261719,1e-08,2519.4,2519.3,15.21334071]
[1751717266505,1e-08,2519.4,2519.3,19.40334071]
[1751717266881,1e-08,2519.4,2519.3,18.61084071]
[1751717267084,1e-08,2519.4,2519.3,16.76035656]
[1751717267283,0.36962272,2519.4,2519.3,16.76035656]
[1751717268506,0.36962272,2519.4,2519.3,8.71135656]
[1751717268709,0.36962272,2519.4,2519.3,16.76035656]
[1751717271612,0.36964346,2519.4,2519.3,16.76035656]
[1751717272320,1e-08,2519.4,2519.3,18.83334071]
[1751717272609,1e-08,2519.4,2519.3,14.09334071]
[1751717272610,0.36967766,2519.4,2519.3,14.09334071]
[1751717273418,0.36967766,2519.4,2519.3,12.02035656]
[1751717274423,0.36962719,2519.4,2519.3,12.02035656]
[1751717282327,1e-08,2519.4,2519.3,12.02035656]
[1751717282519,0.36956289,2519.4,2519.3,12.02035656]
[1751717288332,0.3696634,2519.4,2519.3,12.02035656]
[1751717289211,0.3696634,2519.4,2519.3,13.23861027]
[1751717297047,1e-08,2519.4,2519.3,13.23861027]
[1751717297215,0.36989462,2519.4,2519.3,13.23861027]
[1751717299443,0.36989462,2519.4,2519.3,13.23661027]
[1751717300545,0.36989462,2519.4,2519.3,5.18961027]
[1751717300843,0.36989462,2519.4,2519.3,12.01835656]
[1751717301229,0.36989462,2519.4,2519.3,3.97135656]
[1751717301433,0.36989462,2519.4,2519.3,12.01835656]
[1751717303347,0.36989462,2519.4,2519.3,3.97135656]
[1751717303559,0.36989462,2519.4,2519.3,12.01735656]
[1751717305960,0.36979665,2519.4,2519.3,12.01735656]
[1751717314858,0.36976915,2519.4,2519.3,12.01735656]
[1751717316678,0.65656915,2519.4,2519.3,3.97135656]
[1751717316832,0.65656915,2519.4,2519.3,12.01635656]
[1751717317532,0.65659143,2519.4,2519.3,12.01635656]
[1751717320268,0.65659143,2519.4,2519.3,0.002]
[1751717320694,5.08836295,2519.4,2519.3,8.047]
[1751717322280,15.08836295,2519.4,2519.3,0.002]
[1751717322647,15.63836295,2519.4,2519.3,0.002]
[1751717323041,15.63836295,2519.4,2518.9,0.002]
[1751717323275,4.25662929,2519.0,2518.9,0.002]
[1751717323478,6.20781517,2519.0,2518.9,0.002]
[1751717323652,16.20781517,2519.0,2518.9,0.002]
[1751717324560,46.75781517,2519.0,2518.9,0.002]
[1751717326581,46.95513414,2519.0,2518.9,0.002]
[1751717326783,46.95347969,2519.0,2518.9,0.002]
[1751717328478,46.75616072,2519.0,2518.9,0.002]
[1751717330664,16.75616072,2519.0,2518.9,0.002]
[1751717330869,8.16916072,2519.0,2518.9,0.002]
[1751717331372,18.16916072,2519.0,2518.9,0.002]
[1751717332688,18.16803386,2519.0,2518.9,0.002]
[1751717338592,18.16789122,2519.0,2518.9,0.002]
[1751717340995,18.3750555,2519.0,2518.9,0.002]
[1751717349509,18.37611265,2519.0,2518.9,0.002]
[1751717352309,3.96998689,2518.9,2518.8,0.002]
[1751717352499,6.57255892,2518.9,2518.8,0.002]
[1751717359597,2.60257203,2518.9,2518.8,0.002]
[1751717359803,0.36796208,2518.9,2518.8,0.002]
[1751717360003,0.36796208,2518.9,2518.8,3.97214451]
[1751717361126,0.36796208,2518.9,2518.8,4.72674451]
[1751717363929,0.36796208,2518.9,2518.8,0.7566]
[1751717366402,0.36796208,2518.9,2518.8,0.002]
[1751717366629,5.59165786,2518.9,2518.8,0.002]
[1751717367727,1.62167097,2518.9,2518.8,0.002]
[1751717367926,0.36796208,2518.9,2518.8,0.002]
[1751717370230,0.36898434,2518.9,2518.8,0.002]
[1751717371740,4.33897123,2518.9,2518.8,0.002]
[1751717373119,4.33900953,2518.9,2518.8,0.002]
[1751717376146,3.96998689,2518.9,2518.8,0.002]
[1751717376439,15.37851647,2518.9,2518.8,0.002]
[1751717376627,22.96613638,2518.9,2518.8,0.002]
[1751717381749,11.40852958,2518.9,2518.8,0.002]
[1751717381944,12.33105294,2518.9,2518.8,0.002]
[1751717382114,12.33109932,2518.9,2518.8,0.002]
[1751717382515,12.33110117,2518.9,2518.8,0.002]
[1751717383430,16.30108806,2518.9,2518.8,0.002]
[1751717384352,12.33110117,2518.9,2518.8,0.002]
[1751717385850,0.36910117,2518.9,2518.8,0.002]
[1751717387068,0.36910117,2518.9,2518.8,4.78874451]
[1751717387734,0.20712682,2519.0,2518.8,4.78874451]
[1751717387968,0.36923877,2518.9,2518.8,4.78874451]
[1751717394680,0.20712682,2519.0,2518.8,4.78874451]
[1751717394846,0.36924814,2518.9,2518.8,4.78874451]
[1751717396789,0.36924814,2518.9,2518.8,13.70464884]
[1751717396951,0.36924814,2518.9,2518.8,21.29226875]
[1751717399275,1e-08,2519.4,2519.3,3.96935656]
[1751717399574,0.36900869,2519.4,2519.3,12.80745656]
[1751717400776,0.36888489,2519.4,2519.3,12.80745656]
[1751717402050,0.36888489,2519.4,2519.3,14.48515093]
[1751717404582,0.36888489,2519.4,2519.3,6.44515093]
[1751717405180,0.36888489,2519.4,2519.3,14.48315093]
[1751717405382,0.36888489,2519.4,2519.3,8.037]
[1751717405563,0.36888489,2519.4,2519.3,12.00635656]
[1751717408854,1e-08,2519.4,2519.3,12.00635656]
[1751717409055,0.36841208,2519.4,2519.3,12.00635656]
[1751717411175,0.36841208,2519.4,2519.3,3.96935656]
[1751717411377,0.36841208,2519.4,2519.3,12.00635656]
[1751717411687,0.36841208,2519.4,2519.3,13.68318106]
[1751717412686,0.36841208,2519.4,2519.3,14.49108106]
[1751717413088,0.36841208,2519.4,2519.3,6.45408106]
[1751717413279,0.36841208,2519.4,2519.3,14.49008106]
[1751717414886,0.36841208,2519.4,2519.3,6.45408106]
[1751717415189,0.36841208,2519.4,2519.3,14.49008106]
[1751717421497,0.36841208,2519.4,2519.3,6.45408106]
[1751717421693,0.36841208,2519.4,2519.3,13.68018106]
[1751717424600,0.36841208,2519.4,2519.3,5.64618106]
[1751717424900,0.36841208,2519.4,2519.3,13.68018106]
[1751717426500,0.36841208,2519.4,2519.3,14.44958106]
[1751717426700,0.36939446,2519.4,2519.3,14.44958106]
[1751717437912,0.36967842,2519.4,2519.3,14.44958106]
[1751717443315,0.36967842,2519.4,2519.3,13.68018106]
[1751717443521,0.36967842,2519.4,2519.3,13.67718106]
[1751717444619,0.36967842,2519.4,2519.3,5.64618106]
[1751717444914,0.36967842,2519.4,2519.3,12.00035656]
[1751717446824,0.36967842,2519.4,2519.3,3.96935656]
[1751717447029,0.36967842,2519.4,2519.3,12.00035656]
[1751717447605,0.36995169,2519.4,2519.2,3.9694075]
[1751717447805,1e-08,2519.4,2519.3,12.00035656]
[1751717448130,0.36993258,2519.4,2519.3,12.00035656]
[1751717453312,0.36993258,2519.4,2519.3,8.031]
[1751717455140,0.36993258,2519.4,2519.2,3.96943586]
[1751717455325,1e-08,2519.4,2519.3,12.00035656]
[1751717455634,0.36936143,2519.4,2519.3,12.00035656]
[1751717456533,0.36936507,2519.4,2519.3,3.96935656]
[1751717456704,0.36936507,2519.4,2519.3,11.99935656]
[1751717464356,0.36948133,2519.4,2519.3,11.99935656]
[1751717467371,0.36952968,2519.4,2519.3,11.99935656]
[1751717477778,0.36952968,2519.4,2519.3,11.99635656]
[1751717478864,0.36952968,2519.4,2519.3,8.027]
[1751717479375,0.36952968,2519.4,2519.3,11.99635656]
[1751717487985,1e-08,2519.4,2519.3,11.99635656]
[1751717488190,0.37016914,2519.4,2519.3,11.99635656]
[1751717490485,0.37016914,2519.4,2519.3,3.96935656]
[1751717490697,0.2868,2519.3,2519.1,3.96957122]
[1751717490864,0.2868,2519.3,2519.2,8.025]
[1751717491061,0.65695482,2519.3,2519.2,8.025]
[1751717491555,0.65695482,2519.3,2519.1,3.96957122]
[1751717491760,0.37015482,2519.2,2519.1,3.96957122]
[1751717492095,0.37015482,2519.2,2519.1,11.99457122]
[1751717493383,0.37015482,2519.2,2519.1,3.96957122]
[1751717493585,0.37015482,2519.2,2519.1,8.025]
[1751717495616,0.37015482,2519.2,2519.1,11.9946717]
[1751717496919,0.37015482,2519.2,2519.1,3.9696717]
[1751717497122,0.37015482,2519.2,2519.1,11.9946717]
[1751717497987,0.37015482,2519.2,2519.1,8.025]
[1751717498217,0.3699881,2519.2,2519.1,11.9946717]
[1751717500323,0.3699881,2519.2,2519.1,13.59112122]
[1751717506621,0.3699881,2519.2,2519.1,14.40492122]
[1751717506805,0.3699881,2519.2,2519.1,19.91127572]
[1751717516533,1e-08,2519.4,2519.1,2.41024952]
[1751717516737,0.3698412,2519.3,2519.2,3.96951413]
[1751717516906,0.3698412,2519.3,2519.2,11.99151413]
[1751717520724,1e-08,2519.4,2519.3,3.96935656]
[1751717520927,0.36981792,2519.4,2519.3,3.96935656]
[1751717521708,0.36981792,2519.4,2519.3,11.99035656]
[1751717525238,0.36981792,2519.4,2519.3,3.96935656]
[1751717525410,0.36981792,2519.4,2519.3,11.99035656]
[1751717526743,0.36990316,2519.4,2519.3,11.99035656]
[1751717528547,0.36990316,2519.4,2519.3,8.02]
[1751717529754,0.36990316,2519.4,2519.3,11.98935656]
[1751717541857,0.36990316,2519.4,2519.3,13.66556225]
[1751717544268,0.36999336,2519.4,2519.3,13.66556225]
[1751717548804,0.36999336,2519.4,2519.3,14.46876225]
[1751717549262,0.36999336,2519.4,2519.3,19.97421838]
[1751717550088,0.36979292,2519.4,2519.3,19.97421838]
[1751717551915,0.36979292,2519.4,2519.3,14.46876225]
[1751717553302,0.36966359,2519.4,2519.3,14.46876225]
[1751717553470,1e-08,2519.4,2519.3,19.20876225]
[1751717553675,0.36963089,2519.4,2519.3,19.20876225]
[1751717556206,0.36954348,2519.4,2519.3,19.20876225]
[1751717569641,0.36954348,2519.4,2519.3,10.38556225]
[1751717569838,0.36954348,2519.4,2519.3,16.72335656]
[1751717571345,0.36954348,2519.4,2519.3,11.98335656]
[1751717582156,0.3697732,2519.4,2519.3,11.98335656]
[1751717600087,0.37030165,2519.4,2519.3,11.98335656]
[1751717616296,0.37030165,2519.4,2519.3,18.29011146]
[1751717616603,0.37030165,2519.4,2519.3,20.5160721]
[1751717617486,0.37030165,2519.4,2519.3,6.1953172]
[1751717617663,0.37030165,2519.4,2519.3,11.97835656]
[1751717620796,0.37030165,2519.4,2519.3,12.77905656]
[1751717641239,0.37003336,2519.4,2519.3,12.77905656]
[1751717657561,0.37003336,2519.4,2519.3,11.97835656]
[1751717658860,0.37032768,2519.4,2519.3,11.97835656]
[1751717661961,0.37032768,2519.4,2519.3,14.8691072]
[1751717673368,0.37032768,2519.4,2519.3,3.96935656]
[1751717673570,0.65712768,2519.4,2519.3,11.97035656]
[1751717675269,0.65712768,2519.4,2519.3,3.96935656]
[1751717675454,0.65712768,2519.4,2519.3,11.97035656]
[1751717676646,0.65688616,2519.4,2519.3,11.97035656]
[1751717688285,0.37008616,2519.4,2519.3,11.97035656]
[1751717688788,0.36988575,2519.4,2519.3,11.97035656]
[1751717691683,0.36991431,2519.4,2519.3,11.97035656]
[1751717699971,0.36991431,2519.4,2519.3,3.96935656]
[1751717700173,0.65671431,2519.4,2519.3,11.96835656]
[1751717701302,0.65671431,2519.4,2519.3,3.96935656]
[1751717701601,0.65671431,2519.4,2519.3,11.96735656]
[1751717714716,0.28680001,2519.4,2519.3,11.96735656]
[1751717714917,0.6566948,2519.4,2519.3,11.96735656]
[1751717715122,0.28680001,2519.4,2519.3,11.96735656]
[1751717715292,0.65669397,2519.4,2519.3,11.96735656]
[1751717717520,0.65669397,2519.4,2518.9,0.002]